[Event "Early-Titled-Tuesday-Blitz-March-12-2024"]
[Site "Chess.com"]
[Date "2024.03.12"]
[Round "2"]
[White "pirulillo"]
[Black "Witik"]
[Result "0-1"]
[WhiteElo "2276"]
[BlackElo "2760"]
[TimeControl "180+1"]
[EndTime "8:19:22 PDT"]
[Termination "Witik won on time"]

1. e4 {[%clk 0:03:00.7]} 1... c6 {[%clk 0:03:00.1]} 2. d4 {[%clk 0:02:57.4]}
2... d5 {[%clk 0:02:58.5]} 3. Nc3 {[%clk 0:02:57.5]} 3... dxe4 {[%clk
0:02:58.5]} 4. Nxe4 {[%clk 0:02:58.4]} 4... Nf6 {[%clk 0:02:59]} 5. Nxf6+ {[%clk
0:02:52.5]} 5... exf6 {[%clk 0:02:59.5]} 6. c3 {[%clk 0:02:50.1]} 6... Bd6
{[%clk 0:02:59.8]} 7. Bd3 {[%clk 0:02:50]} 7... O-O {[%clk 0:03:00.3]} 8. Ne2
{[%clk 0:02:50.1]} 8... Re8 {[%clk 0:03:01.2]} 9. O-O {[%clk 0:02:49.9]} 9...
Nd7 {[%clk 0:03:00]} 10. Bd2 {[%clk 0:02:44.5]} 10... Nf8 {[%clk 0:02:57.9]} 11.
Qc2 {[%clk 0:02:44.3]} 11... Ng6 {[%clk 0:02:57.7]} 12. Rae1 {[%clk 0:02:40.1]}
12... Qc7 {[%clk 0:02:39.3]} 13. f4 {[%clk 0:02:35.8]} 13... c5 {[%clk
0:02:34.4]} 14. g3 {[%clk 0:02:27.4]} 14... Bh3 {[%clk 0:02:28.5]} 15. Rf2
{[%clk 0:02:24.4]} 15... Re7 {[%clk 0:02:09.1]} 16. Bf5 {[%clk 0:02:17]} 16...
Bxf5 {[%clk 0:02:07.6]} 17. Qxf5 {[%clk 0:02:17.3]} 17... Rae8 {[%clk
0:02:05.5]} 18. Kf1 {[%clk 0:02:05.8]} 18... Qc6 {[%clk 0:01:50.8]} 19. d5
{[%clk 0:02:04.3]} 19... Qa6 {[%clk 0:01:46.8]} 20. Qb1 {[%clk 0:01:57.4]} 20...
Re4 {[%clk 0:01:07.3]} 21. b3 {[%clk 0:01:55.3]} 21... Nf8 {[%clk 0:00:57.6]}
22. c4 {[%clk 0:01:54.3]} 22... b5 {[%clk 0:00:57.5]} 23. cxb5 {[%clk
0:01:22.8]} 23... Qxb5 {[%clk 0:00:57.1]} 24. Qc2 {[%clk 0:01:17]} 24... f5
{[%clk 0:00:41.1]} 25. Bc3 {[%clk 0:01:14.1]} 25... Nd7 {[%clk 0:00:28.4]} 26.
a4 {[%clk 0:01:05.1]} 26... Qb7 {[%clk 0:00:28.7]} 27. Ng1 {[%clk 0:01:00.4]}
27... Nb6 {[%clk 0:00:22.9]} 28. Rxe4 {[%clk 0:00:52.2]} 28... Rxe4 {[%clk
0:00:22.8]} 29. Rd2 {[%clk 0:00:50.8]} 29... Nxd5 {[%clk 0:00:21.8]} 30. Qd3
{[%clk 0:00:48.6]} 30... Ne3+ {[%clk 0:00:19.9]} 31. Kf2 {[%clk 0:00:47.5]}
31... Ng4+ {[%clk 0:00:13.7]} 32. Kf1 {[%clk 0:00:47.5]} 32... Bf8 {[%clk
0:00:10.3]} 33. h3 {[%clk 0:00:47.2]} 33... Ne3+ {[%clk 0:00:10.2]} 34. Kf2
{[%clk 0:00:46.7]} 34... Qxb3 {[%clk 0:00:10.1]} 35. Nf3 {[%clk 0:00:44.2]}
35... c4 {[%clk 0:00:09.9]} 36. Qd8 {[%clk 0:00:40]} 36... Qxc3 {[%clk
0:00:08.6]} 37. Ne5 {[%clk 0:00:39.9]} 37... Ng4+ {[%clk 0:00:04.5]} 38. hxg4
{[%clk 0:00:39.4]} 38... Qe3+ {[%clk 0:00:05.1]} 39. Kg2 {[%clk 0:00:39]} 39...
Rxe5 {[%clk 0:00:03.1]} 40. fxe5 {[%clk 0:00:37.7]} 40... Qe4+ {[%clk
0:00:03.5]} 41. Kh2 {[%clk 0:00:36.7]} 41... c3 {[%clk 0:00:03.7]} 42. Rf2
{[%clk 0:00:33.3]} 42... c2 {[%clk 0:00:03.3]} 43. Qd2 {[%clk 0:00:32.3]} 43...
Ba3 {[%clk 0:00:02.5]} 44. Qxc2 {[%clk 0:00:31.8]} 44... Qxg4 {[%clk 0:00:01.9]}
45. Qxf5 {[%clk 0:00:26.1]} 45... Qxf5 {[%clk 0:00:02.1]} 46. Rxf5 {[%clk
0:00:26]} 46... a5 {[%clk 0:00:02.2]} 47. Kg2 {[%clk 0:00:22.5]} 47... Bb4
{[%clk 0:00:02.3]} 48. Kf3 {[%clk 0:00:22.3]} 48... Kf8 {[%clk 0:00:02.4]} 49.
Ke4 {[%clk 0:00:22.1]} 49... Ke7 {[%clk 0:00:03]} 50. Rh5 {[%clk 0:00:21.5]}
50... h6 {[%clk 0:00:03.3]} 51. Rh2 {[%clk 0:00:21.1]} 51... Ke6 {[%clk
0:00:03.4]} 52. Rc2 {[%clk 0:00:20.6]} 52... f5+ {[%clk 0:00:03.6]} 53. exf6
{[%clk 0:00:20.1]} 53... Kxf6 {[%clk 0:00:04.5]} 54. Kf4 {[%clk 0:00:16.1]}
54... Bd6+ {[%clk 0:00:04.4]} 55. Kg4 {[%clk 0:00:15.8]} 55... Bb4 {[%clk
0:00:04.4]} 56. Rc7 {[%clk 0:00:15]} 56... g6 {[%clk 0:00:04.5]} 57. Rc6+ {[%clk
0:00:14.5]} 57... Kf7 {[%clk 0:00:04.1]} 58. Kf3 {[%clk 0:00:13.4]} 58... h5
{[%clk 0:00:04]} 59. g4 {[%clk 0:00:13.2]} 59... hxg4+ {[%clk 0:00:03.9]} 60.
Kxg4 {[%clk 0:00:13.4]} 60... Bd2 {[%clk 0:00:04.6]} 61. Kf3 {[%clk 0:00:12.3]}
61... Bb4 {[%clk 0:00:04.6]} 62. Ke4 {[%clk 0:00:12.5]} 62... Kg7 {[%clk
0:00:05.2]} 63. Kd5 {[%clk 0:00:12.2]} 63... Kh6 {[%clk 0:00:05.7]} 64. Kc4
{[%clk 0:00:11.6]} 64... Kh5 {[%clk 0:00:05.7]} 65. Rb6 {[%clk 0:00:09.7]} 65...
Be1 {[%clk 0:00:04.3]} 66. Kb5 {[%clk 0:00:06.3]} 66... g5 {[%clk 0:00:04.5]}
67. Re6 {[%clk 0:00:06.2]} 67... Bb4 {[%clk 0:00:04.4]} 68. Re4 {[%clk 0:00:06]}
68... g4 {[%clk 0:00:04.7]} 69. Rxb4 {[%clk 0:00:02.9]} 69... axb4 {[%clk
0:00:05.1]} 70. Kxb4 {[%clk 0:00:01.9]} 70... g3 {[%clk 0:00:05.2]} 71. a5
{[%clk 0:00:02.2]} 71... g2 {[%clk 0:00:05.7]} 72. Kb5 {[%clk 0:00:02.6]} 72...
g1=Q {[%clk 0:00:06.3]} 73. a6 {[%clk 0:00:02]} 73... Qa7 {[%clk 0:00:06.2]} 0-1

[Event "Early-Titled-Tuesday-Blitz-March-12-2024"]
[Site "Chess.com"]
[Date "2024.03.12"]
[Round "2"]
[White "sorch29"]
[Black "eagleclaw07"]
[Result "0-1"]
[WhiteElo "2486"]
[BlackElo "2790"]
[TimeControl "180+1"]
[EndTime "8:20:06 PDT"]
[Termination "eagleclaw07 won by checkmate"]

1. d4 {[%clk 0:03:00.9]} 1... Nf6 {[%clk 0:03:00.4]} 2. c4 {[%clk 0:03:00.2]}
2... g6 {[%clk 0:03:01.3]} 3. Nc3 {[%clk 0:02:59.7]} 3... Bg7 {[%clk 0:03:02.2]}
4. e4 {[%clk 0:02:59.3]} 4... d6 {[%clk 0:03:02.8]} 5. Be2 {[%clk 0:02:59.9]}
5... O-O {[%clk 0:03:03.1]} 6. Nf3 {[%clk 0:03:00.6]} 6... e5 {[%clk 0:03:03.1]}
7. d5 {[%clk 0:03:00.9]} 7... Na6 {[%clk 0:03:03]} 8. Bg5 {[%clk 0:02:55.1]}
8... h6 {[%clk 0:03:01.8]} 9. Bh4 {[%clk 0:02:52.7]} 9... Nc5 {[%clk 0:03:01.7]}
10. Nd2 {[%clk 0:02:52.9]} 10... a5 {[%clk 0:03:00.8]} 11. f3 {[%clk 0:02:46.1]}
11... Qe8 {[%clk 0:02:59.7]} 12. Qc2 {[%clk 0:02:44.4]} 12... c6 {[%clk
0:02:57]} 13. Bf2 {[%clk 0:02:36]} 13... Na6 {[%clk 0:02:47]} 14. g4 {[%clk
0:02:26.6]} 14... Bd7 {[%clk 0:02:39.2]} 15. Qb3 {[%clk 0:01:13]} 15... Rb8
{[%clk 0:02:22.3]} 16. Qb6 {[%clk 0:00:59.3]} 16... a4 {[%clk 0:02:02.9]} 17. h4
{[%clk 0:00:48.8]} 17... Qe7 {[%clk 0:01:55.9]} 18. h5 {[%clk 0:00:47.3]} 18...
gxh5 {[%clk 0:01:22.8]} 19. gxh5 {[%clk 0:00:47.5]} 19... Rfc8 {[%clk
0:01:22.9]} 20. O-O-O {[%clk 0:00:31.9]} 20... cxd5 {[%clk 0:01:20.2]} 21. cxd5
{[%clk 0:00:24.1]} 21... a3 {[%clk 0:01:10.2]} 22. Kb1 {[%clk 0:00:21.3]} 22...
axb2 {[%clk 0:01:09.8]} 23. Qxb2 {[%clk 0:00:22.2]} 23... b5 {[%clk 0:01:08.2]}
24. Rc1 {[%clk 0:00:20.5]} 24... Nc5 {[%clk 0:01:06.8]} 25. Nb3 {[%clk 0:00:17]}
25... Na4 {[%clk 0:01:05.4]} 26. Qd2 {[%clk 0:00:17.6]} 26... Qd8 {[%clk
0:00:31.5]} 27. Bd3 {[%clk 0:00:16.3]} 27... Kh7 {[%clk 0:00:25.9]} 28. Ne2
{[%clk 0:00:16.2]} 28... b4 {[%clk 0:00:21.1]} 29. Rxc8 {[%clk 0:00:07.4]} 29...
Rxc8 {[%clk 0:00:22]} 30. Rc1 {[%clk 0:00:07.6]} 30... Rxc1+ {[%clk 0:00:12.5]}
31. Kxc1 {[%clk 0:00:07.3]} 31... Nc3 {[%clk 0:00:05.8]} 32. Nxc3 {[%clk
0:00:07.1]} 32... bxc3 {[%clk 0:00:06.7]} 33. Qxc3 {[%clk 0:00:07.7]} 33... Nxh5
{[%clk 0:00:07.4]} 34. Qb4 {[%clk 0:00:04.8]} 34... Nf4 {[%clk 0:00:07.6]} 35.
Kc2 {[%clk 0:00:04.2]} 35... Bh3 {[%clk 0:00:06.2]} 36. Qb6 {[%clk 0:00:03.4]}
36... Qf6 {[%clk 0:00:05.1]} 37. Qe3 {[%clk 0:00:02.3]} 37... Bg2 {[%clk
0:00:04.5]} 38. Bg3 {[%clk 0:00:02.4]} 38... h5 {[%clk 0:00:04.5]} 39. Be2
{[%clk 0:00:01.9]} 39... Nxe2 {[%clk 0:00:04.3]} 40. Qxe2 {[%clk 0:00:02.1]}
40... Bxf3 {[%clk 0:00:04.8]} 41. Qe3 {[%clk 0:00:02.7]} 41... Bg2 {[%clk
0:00:03.9]} 42. Qe1 {[%clk 0:00:02.9]} 42... Qf3 {[%clk 0:00:03.9]} 43. Nd2
{[%clk 0:00:03.4]} 43... Qg4 {[%clk 0:00:04.4]} 44. Qe3 {[%clk 0:00:03.4]} 44...
h4 {[%clk 0:00:04.7]} 45. Bh2 {[%clk 0:00:03.1]} 45... h3 {[%clk 0:00:05.6]} 46.
Qf2 {[%clk 0:00:03.7]} 46... Kg8 {[%clk 0:00:05.1]} 47. Kc3 {[%clk 0:00:03.9]}
47... Bxe4 {[%clk 0:00:05.4]} 48. Nxe4 {[%clk 0:00:03.9]} 48... Qxe4 {[%clk
0:00:06.3]} 49. Qg3 {[%clk 0:00:01.8]} 49... Qxd5 {[%clk 0:00:05.8]} 50. Qxh3
{[%clk 0:00:02.5]} 50... e4+ {[%clk 0:00:06.4]} 51. Kc2 {[%clk 0:00:01.9]} 51...
Qxa2+ {[%clk 0:00:06.8]} 52. Kd1 {[%clk 0:00:02.1]} 52... Qb1+ {[%clk
0:00:07.1]} 53. Ke2 {[%clk 0:00:02.8]} 53... Qc2+ {[%clk 0:00:07.7]} 54. Kf1
{[%clk 0:00:02.8]} 54... Qd1+ {[%clk 0:00:06.9]} 55. Kg2 {[%clk 0:00:02.9]}
55... Qe2+ {[%clk 0:00:07]} 56. Kh1 {[%clk 0:00:03.6]} 56... Qe1+ {[%clk
0:00:04.1]} 57. Bg1 {[%clk 0:00:03.9]} 57... d5 {[%clk 0:00:03.7]} 58. Qc8+
{[%clk 0:00:03.7]} 58... Kh7 {[%clk 0:00:04.3]} 59. Qh3+ {[%clk 0:00:04.2]}
59... Bh6 {[%clk 0:00:05]} 60. Qf5+ {[%clk 0:00:04.4]} 60... Kg8 {[%clk
0:00:05]} 61. Qc8+ {[%clk 0:00:04.4]} 61... Kg7 {[%clk 0:00:05.2]} 62. Qg4+
{[%clk 0:00:04.8]} 62... Kf8 {[%clk 0:00:02.7]} 63. Qc8+ {[%clk 0:00:04.8]}
63... Ke7 {[%clk 0:00:03.3]} 64. Qc7+ {[%clk 0:00:04.8]} 64... Kf6 {[%clk
0:00:03.4]} 65. Qd6+ {[%clk 0:00:04.5]} 65... Kg7 {[%clk 0:00:02.9]} 66. Qe5+
{[%clk 0:00:04.8]} 66... Kg6 {[%clk 0:00:03.7]} 67. Qd6+ {[%clk 0:00:04.4]}
67... f6 {[%clk 0:00:04.3]} 68. Qxd5 {[%clk 0:00:02.6]} 68... Qh4+ {[%clk
0:00:03.9]} 69. Kg2 {[%clk 0:00:02.8]} 69... Qg4+ {[%clk 0:00:04.7]} 70. Kf1
{[%clk 0:00:02.5]} 70... Qf3+ {[%clk 0:00:05.4]} 71. Ke1 {[%clk 0:00:03]} 71...
Bf4 {[%clk 0:00:04.2]} 72. Qg8+ {[%clk 0:00:02.5]} 72... Kf5 {[%clk 0:00:04.6]}
73. Qh7+ {[%clk 0:00:02.7]} 73... Ke6 {[%clk 0:00:04.8]} 74. Qg8+ {[%clk
0:00:03]} 74... Ke5 {[%clk 0:00:05.3]} 75. Qe8+ {[%clk 0:00:03.3]} 75... Kf5
{[%clk 0:00:05.8]} 76. Qd7+ {[%clk 0:00:02]} 76... Kg5 {[%clk 0:00:06.3]} 77.
Qg7+ {[%clk 0:00:01.5]} 77... Kh5 {[%clk 0:00:06.5]} 78. Qh7+ {[%clk 0:00:02]}
78... Kg4 {[%clk 0:00:03.9]} 79. Qg7+ {[%clk 0:00:02.5]} 79... Bg5 {[%clk
0:00:04.4]} 80. Qd7+ {[%clk 0:00:02.4]} 80... f5 {[%clk 0:00:05]} 81. Qd1 {[%clk
0:00:01.5]} 81... Qxd1+ {[%clk 0:00:05.2]} 82. Kxd1 {[%clk 0:00:02.4]} 82... Kf3
{[%clk 0:00:06.1]} 83. Ke1 {[%clk 0:00:02.7]} 83... Bh4+ {[%clk 0:00:06.4]} 84.
Kf1 {[%clk 0:00:02.3]} 84... f4 {[%clk 0:00:07.3]} 85. Bd4 {[%clk 0:00:02.3]}
85... e3 {[%clk 0:00:07.8]} 86. Kg1 {[%clk 0:00:02.9]} 86... e2 {[%clk
0:00:08.1]} 87. Bc3 {[%clk 0:00:03.6]} 87... e1=Q+ {[%clk 0:00:08.5]} 88. Bxe1
{[%clk 0:00:04.4]} 88... Bxe1 {[%clk 0:00:09.4]} 89. Kf1 {[%clk 0:00:05.1]}
89... Bg3 {[%clk 0:00:09.7]} 90. Kg1 {[%clk 0:00:06]} 90... Ke2 {[%clk
0:00:10.4]} 91. Kg2 {[%clk 0:00:06.4]} 91... Be1 {[%clk 0:00:11.1]} 92. Kg1
{[%clk 0:00:06.5]} 92... f3 {[%clk 0:00:11.6]} 93. Kh2 {[%clk 0:00:07.4]} 93...
f2 {[%clk 0:00:12.1]} 94. Kh3 {[%clk 0:00:07.5]} 94... f1=Q+ {[%clk 0:00:12.5]}
95. Kh2 {[%clk 0:00:08.4]} 95... Qf4+ {[%clk 0:00:10.3]} 96. Kh1 {[%clk
0:00:09.1]} 96... Qf3+ {[%clk 0:00:10.8]} 97. Kg1 {[%clk 0:00:09.5]} 97... Bf2+
{[%clk 0:00:11.1]} 98. Kh2 {[%clk 0:00:10.2]} 98... Qg3+ {[%clk 0:00:11.7]} 99.
Kh1 {[%clk 0:00:10.6]} 99... Qh3# {[%clk 0:00:12.4]} 0-1

[Event "Early-Titled-Tuesday-Blitz-March-12-2024"]
[Site "Chess.com"]
[Date "2024.03.12"]
[Round "3"]
[White "IndianSchoolOfSuffering"]
[Black "PolandHussars"]
[Result "0-1"]
[WhiteElo "2401"]
[BlackElo "2541"]
[TimeControl "180+1"]
[EndTime "8:23:32 PDT"]
[Termination "PolandHussars won by resignation"]

1. e4 {[%clk 0:02:53.8]} 1... e5 {[%clk 0:02:59.9]} 2. Nf3 {[%clk 0:02:52.3]}
2... Nc6 {[%clk 0:03:00.3]} 3. Bb5 {[%clk 0:02:51.7]} 3... g6 {[%clk 0:03:00.1]}
4. c3 {[%clk 0:02:47.1]} 4... d6 {[%clk 0:02:59.7]} 5. d4 {[%clk 0:02:46.4]}
5... Bd7 {[%clk 0:02:59.7]} 6. dxe5 {[%clk 0:02:42.8]} 6... Nxe5 {[%clk
0:02:59.4]} 7. Bxd7+ {[%clk 0:02:42.3]} 7... Nxd7 {[%clk 0:02:59.3]} 8. O-O
{[%clk 0:02:39.8]} 8... Bg7 {[%clk 0:02:59.2]} 9. Re1 {[%clk 0:02:39.6]} 9...
Ngf6 {[%clk 0:02:58.9]} 10. e5 {[%clk 0:02:38.5]} 10... dxe5 {[%clk 0:02:58.5]}
11. Nxe5 {[%clk 0:02:38.2]} 11... O-O {[%clk 0:02:58.3]} 12. Nxd7 {[%clk
0:02:37.5]} 12... Qxd7 {[%clk 0:02:57.7]} 13. Qxd7 {[%clk 0:02:37.1]} 13... Nxd7
{[%clk 0:02:58.6]} 14. Bf4 {[%clk 0:02:37]} 14... Rfe8 {[%clk 0:02:55.2]} 15.
Nd2 {[%clk 0:02:33.3]} 15... c6 {[%clk 0:02:50.7]} 16. Nc4 {[%clk 0:02:32.8]}
16... Nc5 {[%clk 0:02:49]} 17. Nd6 {[%clk 0:02:30.7]} 17... Rxe1+ {[%clk
0:02:47.6]} 18. Rxe1 {[%clk 0:02:28]} 18... Nd3 {[%clk 0:02:47.3]} 19. Re4
{[%clk 0:02:22]} 19... Nxf4 {[%clk 0:02:47.2]} 20. Rxf4 {[%clk 0:02:22.9]} 20...
Be5 {[%clk 0:02:47.3]} 21. Rxf7 {[%clk 0:02:20.7]} 21... Bxd6 {[%clk 0:02:47.5]}
22. Rxb7 {[%clk 0:02:20.7]} 22... Re8 {[%clk 0:02:45.5]} 23. Kf1 {[%clk
0:02:19.7]} 23... Re7 {[%clk 0:02:45.3]} 24. Rb3 {[%clk 0:02:08.7]} 24... Kf7
{[%clk 0:02:40.9]} 25. c4 {[%clk 0:02:08.4]} 25... Bc5 {[%clk 0:02:40.7]} 26.
Rf3+ {[%clk 0:02:07.1]} 26... Ke6 {[%clk 0:02:38.7]} 27. a3 {[%clk 0:02:07.6]}
27... Rf7 {[%clk 0:02:38]} 28. Ke2 {[%clk 0:02:03.8]} 28... Rxf3 {[%clk
0:02:37.5]} 29. Kxf3 {[%clk 0:02:03.9]} 29... Ke5 {[%clk 0:02:37.5]} 30. b4
{[%clk 0:02:03.9]} 30... Bb6 {[%clk 0:02:37]} 0-1

[Event "Early-Titled-Tuesday-Blitz-March-12-2024"]
[Site "Chess.com"]
[Date "2024.03.12"]
[Round "3"]
[White "david_gomez"]
[Black "GAO"]
[Result "1-0"]
[WhiteElo "2612"]
[BlackElo "2308"]
[TimeControl "180+1"]
[EndTime "8:23:36 PDT"]
[Termination "david_gomez won by resignation"]

1. e4 {[%clk 0:03:00.9]} 1... c5 {[%clk 0:02:59.4]} 2. Nf3 {[%clk 0:02:59.8]}
2... Nc6 {[%clk 0:02:59.7]} 3. d4 {[%clk 0:02:59]} 3... cxd4 {[%clk 0:03:00.6]}
4. Nxd4 {[%clk 0:02:59.6]} 4... g6 {[%clk 0:03:01.3]} 5. Nc3 {[%clk 0:02:57.4]}
5... Bg7 {[%clk 0:03:01.8]} 6. Be3 {[%clk 0:02:58]} 6... Nf6 {[%clk 0:03:00.3]}
7. Nxc6 {[%clk 0:02:58.2]} 7... bxc6 {[%clk 0:02:59.2]} 8. e5 {[%clk 0:02:58.5]}
8... Ng8 {[%clk 0:02:58.8]} 9. Bd4 {[%clk 0:02:59.2]} 9... Nh6 {[%clk
0:02:54.9]} 10. e6 {[%clk 0:02:58.8]} 10... f6 {[%clk 0:02:48.7]} 11. exd7+
{[%clk 0:02:53.5]} 11... Bxd7 {[%clk 0:02:47.5]} 12. Bc4 {[%clk 0:02:52.3]}
12... Nf7 {[%clk 0:02:45.3]} 13. O-O {[%clk 0:02:45.2]} 13... O-O {[%clk
0:02:44.6]} 14. Bc5 {[%clk 0:02:45.1]} 14... Kh8 {[%clk 0:02:33.9]} 15. Re1
{[%clk 0:02:44.9]} 15... Ne5 {[%clk 0:02:33.3]} 16. Bb3 {[%clk 0:02:45.4]} 16...
Qe8 {[%clk 0:02:17.1]} 17. f4 {[%clk 0:02:44]} 17... Bg4 {[%clk 0:02:11.1]} 18.
Qc1 {[%clk 0:02:37.6]} 18... Bh6 {[%clk 0:01:56.9]} 19. Qe3 {[%clk 0:02:37.5]}
19... Qc8 {[%clk 0:01:47.2]} 20. Bxe7 {[%clk 0:02:32.9]} 20... Rf7 {[%clk
0:01:44.9]} 21. Bxf7 {[%clk 0:02:31.2]} 21... Nxf7 {[%clk 0:01:43.8]} 22. Bxf6+
{[%clk 0:02:31.7]} 22... Bg7 {[%clk 0:01:44.5]} 23. Bxg7+ {[%clk 0:02:31]} 23...
Kxg7 {[%clk 0:01:45.4]} 24. Qd4+ {[%clk 0:02:29.6]} 1-0

[Event "Early-Titled-Tuesday-Blitz-March-12-2024"]
[Site "Chess.com"]
[Date "2024.03.12"]
[Round "3"]
[White "SaiAgni_98"]
[Black "rikchessmx"]
[Result "1-0"]
[WhiteElo "2557"]
[BlackElo "2296"]
[TimeControl "180+1"]
[EndTime "8:24:31 PDT"]
[Termination "SaiAgni_98 won by checkmate"]

1. e4 {[%clk 0:03:00.9]} 1... c5 {[%clk 0:02:49.6]} 2. Nf3 {[%clk 0:02:59.2]}
2... e6 {[%clk 0:02:50.5]} 3. c3 {[%clk 0:02:56.1]} 3... d5 {[%clk 0:02:50]} 4.
Bb5+ {[%clk 0:02:53.9]} 4... Bd7 {[%clk 0:02:49.6]} 5. Bxd7+ {[%clk 0:02:53.4]}
5... Nxd7 {[%clk 0:02:48.9]} 6. exd5 {[%clk 0:02:49.5]} 6... exd5 {[%clk
0:02:48.5]} 7. O-O {[%clk 0:02:50]} 7... Be7 {[%clk 0:02:48.1]} 8. d4 {[%clk
0:02:49.7]} 8... c4 {[%clk 0:02:48.2]} 9. Bf4 {[%clk 0:02:48.9]} 9... Ngf6
{[%clk 0:02:47.7]} 10. Re1 {[%clk 0:02:49]} 10... O-O {[%clk 0:02:47.8]} 11.
Nbd2 {[%clk 0:02:48.9]} 11... b5 {[%clk 0:02:43.5]} 12. a3 {[%clk 0:02:47.2]}
12... a5 {[%clk 0:02:42.7]} 13. Ne5 {[%clk 0:02:46.7]} 13... Nxe5 {[%clk
0:02:41.7]} 14. dxe5 {[%clk 0:02:43.6]} 14... Nd7 {[%clk 0:02:41.2]} 15. Qh5
{[%clk 0:02:39.5]} 15... Nc5 {[%clk 0:02:38.3]} 16. Re3 {[%clk 0:02:38.3]} 16...
g6 {[%clk 0:02:37.7]} 17. Qh6 {[%clk 0:02:37.6]} 17... f6 {[%clk 0:02:28.3]} 18.
e6 {[%clk 0:02:31.8]} 18... g5 {[%clk 0:02:23.8]} 19. Rh3 {[%clk 0:02:27.9]}
19... Rf7 {[%clk 0:02:11.4]} 20. exf7+ {[%clk 0:02:27.7]} 20... Kxf7 {[%clk
0:02:12.3]} 21. Qxh7+ {[%clk 0:02:25.6]} 21... Ke6 {[%clk 0:02:12.4]} 22. Re1+
{[%clk 0:02:25.1]} 22... Kd7 {[%clk 0:02:10.8]} 23. Rhe3 {[%clk 0:02:21]} 23...
gxf4 {[%clk 0:02:03.3]} 24. Rxe7+ {[%clk 0:02:11.9]} 24... Kd6 {[%clk
0:02:03.4]} 25. Qf7 {[%clk 0:02:04.6]} 25... Qf8 {[%clk 0:01:53.9]} 26. Qe6+
{[%clk 0:01:45.3]} 26... Nxe6 {[%clk 0:01:50.2]} 27. R1xe6+ {[%clk 0:01:45.8]}
27... Kc5 {[%clk 0:01:49.6]} 28. Rc7# {[%clk 0:01:46.3]} 1-0

[Event "Early-Titled-Tuesday-Blitz-March-12-2024"]
[Site "Chess.com"]
[Date "2024.03.12"]
[Round "3"]
[White "xakevicius91"]
[Black "Oleksandr_Bortnyk"]
[Result "0-1"]
[WhiteElo "2565"]
[BlackElo "3003"]
[TimeControl "180+1"]
[EndTime "8:24:43 PDT"]
[Termination "Oleksandr_Bortnyk won by resignation"]

1. e4 {[%clk 0:02:54.1]} 1... Nf6 {[%clk 0:02:59.5]} 2. e5 {[%clk 0:02:51]} 2...
Nd5 {[%clk 0:02:57.9]} 3. d4 {[%clk 0:02:48.8]} 3... d6 {[%clk 0:02:57.7]} 4.
Nf3 {[%clk 0:02:46.2]} 4... dxe5 {[%clk 0:02:57.7]} 5. Nxe5 {[%clk 0:02:43.9]}
5... c6 {[%clk 0:02:58.1]} 6. Be2 {[%clk 0:02:43.5]} 6... Bf5 {[%clk 0:02:57.9]}
7. O-O {[%clk 0:02:42.1]} 7... Nd7 {[%clk 0:02:57.9]} 8. Nf3 {[%clk 0:02:42.1]}
8... e6 {[%clk 0:02:58.4]} 9. c4 {[%clk 0:02:42.5]} 9... N5f6 {[%clk 0:02:58.5]}
10. Nc3 {[%clk 0:02:42]} 10... Bd6 {[%clk 0:02:58.6]} 11. Nh4 {[%clk 0:02:41.8]}
11... Bg6 {[%clk 0:02:58.7]} 12. Be3 {[%clk 0:02:40.8]} 12... Ne4 {[%clk
0:02:58.8]} 13. g3 {[%clk 0:02:37.1]} 13... Nxc3 {[%clk 0:02:54.7]} 14. bxc3
{[%clk 0:02:38]} 14... O-O {[%clk 0:02:52.5]} 15. Nxg6 {[%clk 0:02:37.7]} 15...
hxg6 {[%clk 0:02:53.4]} 16. Bf3 {[%clk 0:02:37.8]} 16... Rc8 {[%clk 0:02:53.1]}
17. Qd3 {[%clk 0:02:36.6]} 17... Qa5 {[%clk 0:02:48.5]} 18. h4 {[%clk
0:02:35.1]} 18... Rfd8 {[%clk 0:02:44]} 19. Rab1 {[%clk 0:02:30.6]} 19... Be7
{[%clk 0:02:39.2]} 20. Qc2 {[%clk 0:02:26]} 20... b6 {[%clk 0:02:37.8]} 21. Kg2
{[%clk 0:02:25.4]} 21... e5 {[%clk 0:02:22.4]} 22. h5 {[%clk 0:02:23.5]} 22...
gxh5 {[%clk 0:02:20.7]} 23. d5 {[%clk 0:02:20.4]} 23... cxd5 {[%clk 0:02:18]}
24. cxd5 {[%clk 0:02:17.9]} 24... Rxc3 {[%clk 0:02:06.9]} 25. Qd2 {[%clk
0:02:00.8]} 25... Nf6 {[%clk 0:02:01.3]} 26. Qe2 {[%clk 0:01:56]} 26... e4
{[%clk 0:01:54.4]} 27. Bxh5 {[%clk 0:01:55.6]} 27... Rxd5 {[%clk 0:01:49.3]} 28.
Rh1 {[%clk 0:01:53.2]} 28... Rxe3 {[%clk 0:01:49]} 29. Qxe3 {[%clk 0:01:48.7]}
29... Rxh5 {[%clk 0:01:49.1]} 30. Rxh5 {[%clk 0:01:38.2]} 30... Qxh5 {[%clk
0:01:50]} 31. Rh1 {[%clk 0:01:38.3]} 31... Qf5 {[%clk 0:01:46.5]} 0-1

[Event "Early-Titled-Tuesday-Blitz-March-12-2024"]
[Site "Chess.com"]
[Date "2024.03.12"]
[Round "3"]
[White "Andrei_Skvortsov"]
[Black "Rud_Makarian"]
[Result "0-1"]
[WhiteElo "2778"]
[BlackElo "3011"]
[TimeControl "180+1"]
[EndTime "8:24:44 PDT"]
[Termination "Rud_Makarian won by resignation"]

1. e4 {[%clk 0:03:00.9]} 1... d6 {[%clk 0:02:54.8]} 2. d4 {[%clk 0:03:00.8]}
2... Nf6 {[%clk 0:02:55.3]} 3. Nc3 {[%clk 0:03:01.2]} 3... e5 {[%clk 0:02:56]}
4. Nf3 {[%clk 0:03:01.9]} 4... Nbd7 {[%clk 0:02:55.8]} 5. Bc4 {[%clk 0:03:02.2]}
5... Be7 {[%clk 0:02:55.8]} 6. O-O {[%clk 0:03:02.6]} 6... O-O {[%clk
0:02:56.2]} 7. a4 {[%clk 0:03:03.2]} 7... c6 {[%clk 0:02:56.6]} 8. Re1 {[%clk
0:03:00.5]} 8... exd4 {[%clk 0:02:55.5]} 9. Nxd4 {[%clk 0:03:01.4]} 9... Ne5
{[%clk 0:02:55.8]} 10. Bf1 {[%clk 0:02:59.9]} 10... Ng6 {[%clk 0:02:56.1]} 11.
f4 {[%clk 0:02:53.4]} 11... Re8 {[%clk 0:02:55.7]} 12. h3 {[%clk 0:02:51.3]}
12... Qc7 {[%clk 0:02:53.8]} 13. Qf3 {[%clk 0:02:50.3]} 13... Bd7 {[%clk
0:02:51.8]} 14. Qf2 {[%clk 0:02:44.5]} 14... Rad8 {[%clk 0:02:49.8]} 15. Nf5
{[%clk 0:02:41.9]} 15... Bxf5 {[%clk 0:02:42.8]} 16. exf5 {[%clk 0:02:41.8]}
16... Nf8 {[%clk 0:02:43.5]} 17. Qxa7 {[%clk 0:02:34.3]} 17... d5 {[%clk
0:02:43.9]} 18. Be3 {[%clk 0:02:32.1]} 18... N8d7 {[%clk 0:02:42.5]} 19. Qd4
{[%clk 0:02:13.7]} 19... Bc5 {[%clk 0:02:40.1]} 20. Qd3 {[%clk 0:02:13.4]} 20...
Rxe3 {[%clk 0:02:40.1]} 21. Rxe3 {[%clk 0:02:13.3]} 21... Qxf4 {[%clk
0:01:45.6]} 22. Re1 {[%clk 0:02:11.2]} 22... Ne5 {[%clk 0:01:23.7]} 23. Qd1
{[%clk 0:02:04.2]} 23... Bxe3+ {[%clk 0:01:21.5]} 24. Kh1 {[%clk 0:02:01.7]}
24... Nfg4 {[%clk 0:01:17.3]} 0-1